Cogmind - Beta 10.2 @@@ ROGUE MODE // 2021.10.25 @ 10:29:34 Player: youngster Result: Escaped! Performance ------------- Evolutions (9) 4500 Regions Visited (26) 5200 Robots Destroyed (259) 1295 Value Destroyed (10632) 10632 Prototype IDs (50) 1000 Alien Tech Used (1) 200 Bonus (7875) 7875 TOTAL SCORE: 30702 Bonus ------- High Alert Combat Kills 519 Follower Combat Kills 1361 Met Zhirov 300 Met Warlord at Base 500 MAIN.C Attacked Warlord 500 Met Warlord at Research 2000 Win 3000 Friendly Fire -305 Cogmind --------- Core Integrity 1477/1600 Matter 250/300 Energy 276/295 System Corruption 1% Temperature Cool (8) Movement Treading (145) Location To Epsilon Eridani Parts ------- > --- POWER (1) -------- Fusion Reactor > --- PROPULSION (5) --- Advanced Medium Treads Biometal Heavy Treads Biometal Heavy Treads > --- UTILITY (15) ----- High-capacity Storage Unit High-capacity Storage Unit Advanced Visual Processing Unit Advanced Signal Interpreter Advanced Terrain Scan Processor Advanced Targeting Computer Advanced Targeting Computer Experimental Targeting Computer Advanced Target Analyzer Experimental Core Analyzer Improved Armor Integrity Analyzer Advanced Armor Integrity Analyzer Advanced Weapon Cycler Centrium Light Armor Plating Hacking Drone Bay (1/1) > --- WEAPON (4) ------- KE Penetrator Hypervelocity Railgun Helical Railgun Enhanced Force Lance > --- INVENTORY (20) --- Quantum Reactor Improved Heavy Treads Biometal Heavy Treads Improved Matter Compressor (300) Improved Sensor Array Advanced Targeting Computer Improved Hardlight Generator Improved Force Field Long-range Tractor Beam Mobile Refinery Mk. CCLXVII Transdimensional Reconstructor Compact HERF Cannon Hypervelocity Railgun Hypervelocity Railgun Helical Railgun Helical Railgun Hellfire Missile Launcher Peak State ------------ > --- POWER ------------ Fusion Reactor > --- PROPULSION ------- Medium Treads Armored Heavy Treads Biometal Heavy Treads > --- UTILITY ---------- High-capacity Storage Unit High-capacity Storage Unit Advanced Signal Interpreter Wardrone Bay > --- WEAPON ----------- KE Penetrator Improved KE Penetrator Helical Railgun Helical Railgun > --- INVENTORY -------- Quantum Reactor Heavy Treads Improved Matter Compressor Improved Sensor Array Improved Terrain Scanner Heavy Armor Plating Improved Hardlight Generator Improved Force Field Long-range Tractor Beam Mobile Refinery Mk. CCLXVII Hacking Drone Bay Transdimensional Reconstructor Compact HERF Cannon Coil Gun Hardcell Cannon Linear Accelerator Hellfire Missile Launcher Force Lance [Rating: 224] Favorites ----------- Power Light Deuterium Engine Engine Light Deuterium Engine Power Core Fission Core Reactor Fusion Reactor Propulsion Light Treads Treads Light Treads Leg Carbon-fiber Leg Wheel Armored Wheel Utility High-capacity Storage Unit Device Improved Sensor Array Storage High-capacity Storage Unit Processor Advanced Targeting Computer Protection Medium Armor Plating Weapon Gauss Rifle Energy Gun EM Pulse Gun Energy Cannon Nova Cannon Ballistic Gun Gauss Rifle Ballistic Cannon Enhanced Gauss Cannon Launcher Hellfire Missile Launcher Special Weapon Advanced Remote Datajack Slashing Weapon Phasing Sabre Piercing Weapon Enhanced Force Lance Special Melee Weapon Datajack Build | -11 -10 -10 -9 -9 -9 -8 -8 -7 -7 -7 -6 -6 -6 -5 -5 -5 -5 -4 -4 -4 -4 -4 -3 -3 -2 -1 ------- Run | Scr Mat Min Mat Min Exi Min Mat Fac Low Zio Pro Fac Ext Fac Upp Upp War Pro Fac Upp Upp Zhi Pro Res Res Acc Slots Evolved 18 | . . . 2 . . . 2 2 . . . 2 . 2 . . . . 2 . . . . 2 2 2 Power . | . . . . . . . . . . . . . . . . . . . . . . . . . . . Propulsion 3 | . . . . . . . 1 1 . . . 1 . . . . . . . . . . . . . . Utility 13 | . . . 1 . . . 1 . . . . 1 . 2 . . . . 2 . . . . 2 2 2 Weapon 2 | . . . 1 . . . . 1 . . . . . . . . . . . . . . . . . . Parts Attached 399 | 7 9 1 26 4 3 10 37 16 . 8 2 9 30 19 21 5 8 15 44 7 9 10 14 13 44 28 Power 12 | 1 . 1 2 . . . 2 1 . . . . 1 . 1 . . 1 1 . . 1 . . . . Engine 7 | 1 . 1 2 . . . 2 1 . . . . . . . . . . . . . . . . . . Core 2 | . . . . . . . . . . . . . 1 . 1 . . . . . . . . . . . Reactor 3 | . . . . . . . . . . . . . . . . . . 1 1 . . 1 . . . . Propulsion 58 | 2 2 . 10 . . . 8 2 . . . 3 8 4 1 . . 1 7 . . . . 1 5 4 Treads 54 | 2 2 . 10 . . . 8 1 . . . 3 6 4 1 . . 1 6 . . . . 1 5 4 Leg 3 | . . . . . . . . . . . . . 2 . . . . . 1 . . . . . . . Wheel 1 | . . . . . . . . 1 . . . . . . . . . . . . . . . . . . Hover . | . . . . . . . . . . . . . . . . . . . . . . . . . . . Flight . | . . . . . . . . . . . . . . . . . . . . . . . . . . . Utility 211 | 2 4 . 6 . 2 1 13 8 . 7 2 5 11 10 17 4 5 11 34 7 8 6 11 6 14 17 Device 136 | . . . 1 . . . 4 6 . 6 1 3 6 5 12 2 2 8 29 7 8 4 11 5 5 11 Storage 11 | 2 4 . . . 2 . 1 . . . . . . . . . . . 1 . . 1 . . . . Processor 19 | . . . . . . . 2 . . . . 1 1 1 . . 1 . 1 . . . . 1 7 4 Hackware . | . . . . . . . . . . . . . . . . . . . . . . . . . . . Protection 45 | . . . 5 . . 1 6 2 . 1 1 1 4 4 5 2 2 3 3 . . 1 . . 2 2 Artifact . | . . . . . . . . . . . . . . . . . . . . . . . . . . . Weapon 118 | 2 3 . 8 4 1 9 14 5 . 1 . 1 10 5 2 1 3 2 2 . 1 3 3 6 25 7 Energy Gun 4 | . . . 1 . . . . . . . . . 1 1 . . . 1 . . . . . . . . Energy Cannon 2 | . . . . . . . . . . . . . 1 . . . . . . . . . . 1 . . Ballistic Gun 64 | 2 3 . 6 2 . 7 11 3 . 1 . 1 7 1 1 1 2 . . . . . . 1 11 4 Ballistic Cannon 11 | . . . . . . . . . . . . . . . . . 1 . 2 . 1 3 2 1 1 . Launcher 16 | . . . 1 2 . 2 3 . . . . . . . . . . . . . . . 1 1 5 1 Special Weapon 1 | . . . . . . . . . . . . . . . . . . . . . . . . . 1 . Impact Weapon . | . . . . . . . . . . . . . . . . . . . . . . . . . . . Slashing Weapon 10 | . . . . . . . . 2 . . . . 1 3 1 . . 1 . . . . . 2 . . Piercing Weapon 9 | . . . . . . . . . . . . . . . . . . . . . . . . . 7 2 Special Melee Weapon 1 | . . . . . 1 . . . . . . . . . . . . . . . . . . . . . Unidentified Prototypes 19 | . . . 1 . . . 1 . . 2 . 1 1 . . . 1 . . . . 4 . 1 7 . Parts Lost 35 | . . 1 2 . . 4 5 1 . . . . 5 . 1 . . 3 4 . 1 . . . 2 6 Power 7 | . . 1 . . . . 2 1 . . . . . . 1 . . 1 1 . . . . . . . Propulsion 9 | . . . . . . . . . . . . . 4 . . . . 1 2 . . . . . 1 1 Utility 8 | . . . . . . 1 1 . . . . . . . . . . 1 1 . . . . . 1 3 Weapon 11 | . . . 2 . . 3 2 . . . . . 1 . . . . . . . 1 . . . . 2 Highest Loss Streak 5 | . . 1 1 . . 2 2 1 . . . . 2 . 1 . . 2 2 . 1 . . . 1 5 Average Slot Usage (%) 94 | . 99 96 99 100 100 99 98 99 100 100 100 100 99 95 93 94 94 89 89 89 89 74 88 86 64 90 Engine 4 | . 14 10 10 11 11 11 8 7 7 7 7 6 1 . . . . . . . . . . . . . Core 1 | . . . . . . . . . . . . . 4 5 4 5 5 . . . . . . . . . Reactor 1 | . . . . . . . . . . . . . . . . . . 1 5 5 5 5 5 4 4 4 Treads 21 | . 28 28 22 22 22 22 27 23 23 23 23 26 28 24 23 23 23 22 16 15 15 15 15 14 12 11 Wheel 1 | . . . . . . . . 6 7 7 7 6 3 . . . . . . . . . . . . . Device 6 | . . . . . . . . 6 7 5 3 5 3 8 10 10 9 6 16 21 21 20 21 22 6 9 Storage 15 | . 28 28 22 22 22 22 18 15 15 15 15 13 13 11 11 11 11 11 10 10 10 10 10 9 8 8 Processor 10 | . . . . . . . 9 7 7 7 7 13 13 16 17 17 17 17 15 15 15 15 15 16 13 35 Protection 3 | . . . 10 11 11 11 8 . . 1 3 . 2 2 . . 1 2 3 . . . . . 1 6 Ballistic Gun 20 | . 27 28 32 33 22 32 25 23 23 24 30 26 25 20 21 17 13 11 4 . . . . . 10 12 Ballistic Cannon 1 | . . . . . . . . . . . . . . . . . 3 5 10 15 15 1 14 9 1 . Slashing Weapon 2 | . . . . . . . . 6 7 5 . . . 2 1 5 5 4 5 5 5 5 5 3 . . Naked Turns . | . . . . . . . . . . . . . . . . . . . . . . . . . . . Heaviest Build 161 | 16 75 73 88 88 88 88 86 89 83 92 92 93 106 104 99 99 108 123 136 118 118 130 130 125 161 127 Greatest Support 180 | 40 40 40 43 43 43 43 66 60 12 60 60 82 108 148 152 152 152 152 180 168 168 168 168 168 178 180 Greatest Overweight (x) 8 | . 1 1 2 2 2 2 1 6 6 7 7 7 8 . . . . . 1 . . . . . 1 . Average Overweight (x) 1 | . . 1 1 2 1 1 1 4 6 3 6 6 3 . . . . . . . . . . . . . Largest Inventory Capacity 20 | 8 20 20 20 20 20 20 20 20 20 20 20 20 20 20 20 20 20 20 20 20 20 20 20 20 20 20 Average Capacity 19 | 6 16 20 20 20 20 20 20 20 20 20 20 20 20 20 20 20 20 20 20 20 20 20 20 20 20 20 Most Carried 20 | 5 20 20 20 20 20 20 20 20 20 20 20 20 20 20 20 20 20 20 20 20 20 20 20 20 20 20 Average Carried 19 | 3 14 19 19 19 20 19 19 19 20 19 20 19 19 19 19 20 19 19 19 20 19 19 19 19 19 19 Final Capacity 20 | 8 20 20 20 20 20 20 20 20 20 20 20 20 20 20 20 20 20 20 20 20 20 20 20 20 20 20 Final Carried 20 | 5 20 19 20 20 20 20 20 20 20 20 20 20 20 20 20 20 20 18 20 20 19 20 20 20 20 19 Class Distribution -------------------- 21% | Hauler-Assassin 18% | Hauler-Gunner 17% | Hauler-Tank 14% | Hauler-Mutant 7% | Hauler-Skirmisher 5% | Mutant 4% | Scavenger-Gunner 3% | Scavenger-Assassin Dominant Class ---------------- Mutant | -10/Materials Hauler-Mutant | -10/Mines Hauler-Tank | -9/Materials Hauler-Tank | -9/Mines Hauler-Mutant | -9/Exiles Hauler-Tank | -8/Mines Hauler-Gunner | -8/Materials Hauler-Gunner | -7/Factory Hauler-Mutant | -7/Lower Caves Hauler-Gunner | -7/Zion Hauler-Gunner | -6/Proximity Caves Hauler-Skirmisher | -6/Factory Scavenger-Gunner | -6/Extension Scavenger-Skirmisher | -5/Factory Hauler-Skirmisher | -5/Upper Caves Hauler-Assassin | -5/Upper Caves Hauler-Assassin | -5/Warlord Derelict-Mutant | -4/Proximity Caves Hauler-Assassin | -4/Factory Hauler-Assassin | -4/Upper Caves Hauler-Assassin | -4/Upper Caves Hauler-Assassin | -4/Zhirov Hauler-Assassin | -3/Proximity Caves Hauler-Assassin | -3/Research Hauler-Gunner | -2/Research Scavenger-Assassin | -1/Access Resources | -11 -10 -10 -9 -9 -9 -8 -8 -7 -7 -7 -6 -6 -6 -5 -5 -5 -5 -4 -4 -4 -4 -4 -3 -3 -2 -1 ----------- Run | Scr Mat Min Mat Min Exi Min Mat Fac Low Zio Pro Fac Ext Fac Upp Upp War Pro Fac Upp Upp Zhi Pro Res Res Acc Matter Collected 11116 | 306 605 90 1335 40 . 456 762 488 . 80 110 196 933 206 425 104 5 474 964 221 253 374 406 232 1451 600 Remotely 4696 | . . . 140 . . . 256 199 . . . 115 30 156 310 . . . 530 221 253 174 406 232 1184 490 Salvage Created 11452 | 122 902 84 1610 33 . 720 1032 533 . . 124 186 1010 125 464 103 5 330 1201 105 92 318 193 300 1203 657 Parts 571 | 10 57 1 104 11 . 44 77 26 . . 6 14 31 8 15 3 . 12 45 5 . 1 9 7 52 33 Haulers Intercepted 13 | . 2 . 4 . . . 5 1 . . . . 1 . . . . . . . . . . . . . Recyclers Shooed 4 | 1 3 . . . . . . . . . . . . . . . . . . . . . . . . . Parts Field Recycled . | . . . . . . . . . . . . . . . . . . . . . . . . . . . Retrieved Matter . | . . . . . . . . . . . . . . . . . . . . . . . . . . . Parts Self-Destructed 80 | . . . . . . . . . . 4 11 . . . 14 3 20 15 . 5 . 1 7 . . . Prevented 28 | . . . . . . . . . . . . . . . 2 5 9 . . . 12 . . . . . Kills | -11 -10 -10 -9 -9 -9 -8 -8 -7 -7 -7 -6 -6 -6 -5 -5 -5 -5 -4 -4 -4 -4 -4 -3 -3 -2 -1 ------- Run | Scr Mat Min Mat Min Exi Min Mat Fac Low Zio Pro Fac Ext Fac Upp Upp War Pro Fac Upp Upp Zhi Pro Res Res Acc Combat Hostiles Destroyed 210 | . 16 2 38 6 . 20 20 10 . . 2 3 9 2 7 2 . 5 16 3 3 . 8 3 23 12 Guns 142 | . 16 2 34 . . 14 16 10 . . 2 3 9 2 5 2 . 3 3 . . . . . 15 6 Cannons 30 | . . . . . . . . . . . . . . . . . . 2 13 3 3 . 5 3 1 . AOE 37 | . . . 4 6 . 6 4 . . . . . . . 1 . . . . . . . 3 . 7 6 Classes Destroyed 19 | 2 5 . 6 . . 1 . 1 . . . . . . . . . . . . . . . . 4 . Worker 6 | . 1 . . . . . 2 . . . . 1 . . . . . . . . . . . 2 . . Builder 5 | . . . 2 . . 1 1 . . . . . 1 . . . . . . . . . . . . . Tunneler 5 | 2 1 . . . . 1 . . . . . . . . . . . . 1 . . . . . . . Hauler 13 | . 2 . 4 . . . 5 1 . . . . 1 . . . . . . . . . . . . . Recycler 10 | 1 3 . . . . 1 . . . . . . 2 . . . . . 2 . . . . 1 . . Mechanic 2 | . . . . . . . . . . . . . . . . . . . . . . . . . 1 1 Operator 4 | . . . 2 . . . . 1 . . . . 1 . . . . . . . . . . . . . Watcher 4 | . 1 . . . . . 2 . . . . . . . . . . . . . . . . . . 1 Swarmer 54 | . 6 . 9 6 . 10 7 3 . . . . . . . . . . . . . . 5 . 4 4 Grunt 82 | . 10 2 20 . . 7 7 3 . . 1 . 4 . 6 2 . 2 4 . 3 . 1 . 5 5 Brawler 2 | . . . 1 . . 1 . . . . . . . . . . . . . . . . . . . . Duelist 2 | . . . 1 . . 1 . . . . . . . . . . . . . . . . . . . . Protector 1 | . . . 1 . . . . . . . . . . . . . . . . . . . . . . . Sentry 25 | . . . 6 . . . 5 3 . . 1 1 4 . 1 . . . 3 . . . . 1 . . Demolisher 3 | . . . . . . . . . . . . . . . . . . . . . . . . . 3 . Hunter 25 | . . . . . . 1 1 . . . . 2 1 2 . . . 2 6 . . . 2 2 4 2 Programmer 10 | . . . . . . . . 1 . . . . . . . . . 1 3 3 . . . . 1 1 Striker 4 | . . . . . . . . . . . . . . . . . . . . . . . . . 4 . Executioner 2 | . . . . . . . . . . . . . . . . . . . . . . . . . 2 . Best Kill Streak 9 | 2 6 2 6 3 . 6 6 3 . . 1 3 2 2 4 2 . 2 5 2 2 . 5 2 8 9 Combat Bots Only 8 | . 6 2 6 3 . 6 6 3 . . 1 2 2 2 4 2 . 2 5 2 2 . 5 2 8 7 Max Kills in Single Turn 4 | 1 2 1 3 3 . 3 4 2 . . 1 1 2 1 1 1 . 1 1 1 1 . 2 1 4 2 Gunslinging 1 | . 1 . 1 . . . . 1 . . . . . . . . . . . . . . . . 1 1 Exploded 4 | . . . 3 3 . 3 4 . . . . . . . 1 . . . . . . . 2 . 4 2 Melee . | . . . . . . . . . . . . . . . . . . . . . . . . . . . Uniques/NPCs Destroyed . | . . . . . . . . . . . . . . . . . . . . . . . . . . . Combat | -11 -10 -10 -9 -9 -9 -8 -8 -7 -7 -7 -6 -6 -6 -5 -5 -5 -5 -4 -4 -4 -4 -4 -3 -3 -2 -1 -------- Run | Scr Mat Min Mat Min Exi Min Mat Fac Low Zio Pro Fac Ext Fac Upp Upp War Pro Fac Upp Upp Zhi Pro Res Res Acc Damage Taken 17957 | . 426 180 1231 59 . 805 1408 638 . . 114 717 1511 203 380 93 273 1220 1621 137 182 . 395 486 4228 1650 Core 1518 | . 71 12 130 . . 97 172 44 . . 13 87 102 . 19 18 42 99 134 19 16 . 56 23 241 123 Absorbed by Shields 1270 | . . . . . . . . . . . . . . . . . . 191 107 21 47 . 139 108 437 220 Reduced by Siege Mode 295 | . . . . . . . . . . . . . . 10 10 . . 37 37 . 3 . 29 23 62 84 Core Remaining (%) 80 | 100 . 66 . . . 43 68 . . . 91 . 77 . . . . 82 . . . . 80 98 83 92 Volleys Fired 508 | 9 44 10 102 2 . 41 52 21 . . 6 12 41 6 10 4 . 15 30 5 7 . 10 11 50 20 Largest 4 | 2 2 2 3 1 . 3 3 4 . . 4 4 4 4 4 3 . 3 3 3 3 . 3 3 4 4 Hottest 236 | 40 46 46 86 33 . 71 75 109 . . 114 117 117 109 109 81 . 122 188 188 179 . 179 236 144 158 Shots Fired 1473 | 18 88 20 301 2 . 106 146 71 . . 24 48 158 23 40 12 . 44 85 16 22 . 26 27 143 53 Gun 1271 | 18 88 20 299 . . 102 142 71 . . 24 48 156 23 40 12 . 30 24 . . . . . 125 49 Cannon 172 | . . . . . . . . . . . . . 2 . . . . 14 61 16 22 . 24 27 6 . Launcher 29 | . . . 2 2 . 4 4 . . . . . . . . . . . . . . . 2 . 11 4 Special 1 | . . . . . . . . . . . . . . . . . . . . . . . . . 1 . Kinetic 1431 | 18 88 20 294 . . 102 142 71 . . 24 48 156 23 40 12 . 44 85 16 22 . 24 22 131 49 Thermal 7 | . . . . . . . . . . . . . 2 . . . . . . . . . . 5 . . Explosive 29 | . . . 2 2 . 4 4 . . . . . . . . . . . . . . . 2 . 11 4 Electromagnetic 5 | . . . 5 . . . . . . . . . . . . . . . . . . . . . . . Robot Hit Streak 47 | 4 12 19 14 . . 16 23 13 . . 12 9 24 11 32 15 . 26 47 9 20 . 25 22 19 32 Robot Miss Streak 5 | 1 5 1 5 1 . 2 2 1 . . 1 3 3 1 1 2 . 2 2 1 . . 1 1 3 1 Penetration Max 1 | . . . . . . . 1 1 . . . 1 1 1 1 1 . 1 1 . . . . . 1 1 Secondary Targets 35 | . 3 . 6 . . 4 3 1 . . . . 2 . 3 1 . 1 . . . . . . 8 3 Max Gunslinging Chain 1 | . 1 . 1 . . 1 1 1 . . . . 1 . 1 1 . 1 . . . . . . 1 1 Shots Hit Robots 1084 | 11 59 17 193 . 11 75 104 55 . . 18 30 121 15 34 9 2 38 65 10 18 12 17 26 93 51 Core Hits 471 | 5 30 4 67 6 . 33 52 22 . . 6 9 38 7 14 5 1 15 30 3 6 3 13 11 57 34 Critical Hits 90 | . . . 1 . . . 3 3 . . 1 2 5 1 3 . . 9 16 2 5 . 6 1 11 21 Critical Kills 36 | . . . . . . . . 2 . . . . . 1 2 . . 2 11 1 1 . 4 1 6 5 Critical Parts Destroyed 51 | . . . 1 . . . 3 1 . . 1 2 5 . 1 . . 7 5 1 4 . 2 . 2 16 Melee Attacks 153 | . . . . . 11 . . 18 . . . . . 7 6 3 8 8 10 . 4 12 . 8 45 13 Impact . | . . . . . . . . . . . . . . . . . . . . . . . . . . . Slashing 87 | . . . . . . . . 18 . . . . . 7 6 3 8 8 10 . 4 12 . 8 3 . Piercing 55 | . . . . . . . . . . . . . . . . . . . . . . . . . 42 13 Sneak Attacks 19 | . . . . . 11 . . 3 . . . . . . . . . . 1 . . . . 3 1 . Combat Hostiles . | . . . . . . . . . . . . . . . . . . . . . . . . . . . Follow-up Attacks . | . . . . . . . . . . . . . . . . . . . . . . . . . . . Damage Inflicted 27988 | 133 1013 263 3129 342 . 1382 2177 1381 . . 357 573 2623 329 812 259 285 682 1825 376 624 1632 892 1111 3570 2218 Guns 16313 | 133 906 263 2694 . . 980 1664 954 . . 357 559 2569 329 812 259 . 522 487 . . . . . 2128 697 Cannons 3616 | . . . . . . . . . . . . . . . . . . 160 1165 376 624 . 425 699 167 . Explosions 4561 | . . . 396 322 . 351 470 . . . . . . . . . . . . . . . 467 . 1080 1475 Melee 3097 | . . . . . . . . 427 . . . . . . . . 285 . 100 . . 1632 . 412 195 46 Ramming 401 | . 107 . 39 20 . 51 43 . . . . 14 54 . . . . . 73 . . . . . . . Kinetic 19696 | 133 906 263 2660 . . 980 1664 954 . . 357 559 2569 329 812 259 . 682 1652 376 624 . 425 500 2295 697 Thermal 227 | . . . 28 . . . . . . . . . . . . . . . . . . . . 199 . . Explosive 4533 | . . . 368 322 . 351 470 . . . . . . . . . . . . . . . 467 . 1080 1475 Electromagnetic 34 | . . . 34 . . . . . . . . . . . . . . . . . . . . . . . Impact . | . . . . . . . . . . . . . . . . . . . . . . . . . . . Slashing 3051 | . . . . . . . . 427 . . . . . . . . 285 . 100 . . 1632 . 412 195 . Piercing 46 | . . . . . . . . . . . . . . . . . . . . . . . . . . 46 Highest Corruption 7 | . . . . . . . . . . . . . . . . . 1 7 5 5 5 5 5 . 3 1 Average Corruption 3 | . . . . . . . . . . . . . . . . . 1 3 1 5 5 5 5 . 2 1 Corruption Purged . | . . . . . . . . . . . . . . . . . . . . . . . . . . . Effects 79 | . . . . . . . . . . . . . . . . . . 18 3 13 21 7 16 . . 1 Message Errors 21 | . . . . . . . . . . . . . . . . . . 4 1 1 7 2 6 . . . Matter Fused 14 | . . . . . . . . . . . . . . . . . . 4 1 4 1 2 2 . . . Heat Flow Errors 10 | . . . . . . . . . . . . . . . . . . 2 . 2 3 2 1 . . . Energy Discharges 8 | . . . . . . . . . . . . . . . . . . 2 . 3 3 . . . . . Parts Rejected 1 | . . . . . . . . . . . . . . . . . . . . . . . 1 . . . Data Loss (minor) 10 | . . . . . . . . . . . . . . . . . . 4 1 1 3 1 . . . . Data Loss (major) 1 | . . . . . . . . . . . . . . . . . . . . . 1 . . . . . Misfires 5 | . . . . . . . . . . . . . . . . . . . . 1 1 . 3 . . . Targeting Errors 8 | . . . . . . . . . . . . . . . . . . 2 . 1 2 . 2 . . 1 Weapon Failures 1 | . . . . . . . . . . . . . . . . . . . . . . . 1 . . . Overload Shots . | . . . . . . . . . . . . . . . . . . . . . . . . . . . Overflow Damage 1003 | . 1 . . . . . . 45 . . . . . . . . 59 . 21 4 . 575 39 89 129 41 Projectiles 25 | . . . . . . . . . . . . . . . . . . . 21 4 . . . . . . Explosions 104 | . . . . . . . . . . . . . . . . . . . . . . . 39 . 24 41 Melee 874 | . 1 . . . . . . 45 . . . . . . . . 59 . . . . 575 . 89 105 . Knockbacks 33 | . . . 1 . . . . . . . . . 2 . . . . . 10 1 12 . 1 2 4 . Impact 3 | . . . 1 . . . . . . . . . 2 . . . . . . . . . . . . . Kinetic 28 | . . . . . . . . . . . . . . . . . . . 10 1 11 . 1 2 3 . Secondary 2 | . . . . . . . . . . . . . . . . . . . . . 1 . . . 1 . Self-Inflicted Damage 301 | . . . 81 11 . 19 18 . . . . . . . . . . . . . . . 35 . 42 95 Shots 9 | . . . 3 1 . 1 1 . . . . . . . . . . . . . . . 1 . 1 1 Rammed 32 | . 14 . 4 1 . 3 2 . . . . . 5 . . . . . 3 . . . . . . . Targets Rammed 39 | . 17 . 4 1 . 4 3 . . . . 1 6 . . . . . 3 . . . . . . . Kicked . | . . . . . . . . . . . . . . . . . . . . . . . . . . . Crushed 7 | . 3 . . . . 1 1 . . . . 1 1 . . . . . . . . . . . . . Highest Temperature 341 | . 33 15 224 . . 146 205 144 . . 135 129 240 99 318 43 . 274 180 218 217 . 236 281 336 341 Average Temperature 67 | . 8 7 54 . . 39 67 49 . . 60 57 62 40 137 22 . 58 68 86 107 . 120 130 89 206 Received Heat Transfer 2396 | . 123 102 387 . . 270 387 162 . . 48 . 429 . 138 45 27 55 112 . 49 . . 37 4 21 Effects 7 | . . . 1 . . . . . . . . . . . . . . . . . . . . . 1 5 Shutdowns 1 | . . . . . . . . . . . . . . . . . . . . . . . . . . 1 Energy Bleed 2 | . . . 1 . . . . . . . . . . . . . . . . . . . . . 1 . Interference 4 | . . . . . . . . . . . . . . . . . . . . . . . . . . 4 Siege Activations 18 | . . . . . . . . . . . . . . 1 1 . . 2 4 . 2 . 2 1 4 1 Total Turns 255 | . . . . . . . . . . . . . . 10 31 . . 25 38 . 27 . 21 16 54 33 Longest Duration 33 | . . . . . . . . . . . . . . 10 31 . . 14 15 . 21 . 15 16 22 33 Robots Corrupted . | . . . . . . . . . . . . . . . . . . . . . . . . . . . Combat Hostiles . | . . . . . . . . . . . . . . . . . . . . . . . . . . . Parts Fried . | . . . . . . . . . . . . . . . . . . . . . . . . . . . Impact Corruptions 1 | . 1 . . . . . . . . . . . . . . . . . . . . . . . . . Robots Melted . | . . . . . . . . . . . . . . . . . . . . . . . . . . . Combat Hostiles . | . . . . . . . . . . . . . . . . . . . . . . . . . . . Parts Melted 1 | . . . . . . . . . . . . . 1 . . . . . . . . . . . . . Heat Transferred 235 | . . . 50 . . . . . . . . . . . . . . . . . . . . 185 . . Parts Sabotaged . | . . . . . . . . . . . . . . . . . . . . . . . . . . . Parts Stolen . | . . . . . . . . . . . . . . . . . . . . . . . . . . . Parts Stripped . | . . . . . . . . . . . . . . . . . . . . . . . . . . . Power Chain Reactions 1 | . . . 1 . . . . . . . . . . . . . . . . . . . . . . . Missiles Intercepted . | . . . . . . . . . . . . . . . . . . . . . . . . . . . Alert | -11 -10 -10 -9 -9 -9 -8 -8 -7 -7 -7 -6 -6 -6 -5 -5 -5 -5 -4 -4 -4 -4 -4 -3 -3 -2 -1 ------- Run | Scr Mat Min Mat Min Exi Min Mat Fac Low Zio Pro Fac Ext Fac Upp Upp War Pro Fac Upp Upp Zhi Pro Res Res Acc Peak Influence 750 | 15 204 50 750 362 . 468 401 265 . . . 59 427 288 . . . . 366 . . . . 145 638 605 Initial 355 | . 9 3 19 292 . . 123 112 . . . 40 28 177 . . . . . . . . . . 18 355 Average 214 | 6 68 45 415 190 . 249 217 133 . . . 40 204 248 . . . . 118 . . . . 43 229 473 Maximum Alert Level 3 | . 1 . 3 1 . 2 2 1 . . . . 2 1 . . . . 1 . . . . . 2 2 Low Security (%) 53 | 100 87 100 15 67 . 28 45 87 . . . 100 45 13 . . . . 77 . . . . 100 53 . Level 1 32 | . 12 . 37 32 . 65 44 12 . . . . 47 86 . . . . 22 . . . . . 20 42 Level 2 11 | . . . 27 . . 6 9 . . . . . 6 . . . . . . . . . . . 25 57 Level 3 2 | . . . 19 . . . . . . . . . . . . . . . . . . . . . . . Level 4 . | . . . . . . . . . . . . . . . . . . . . . . . . . . . Level 5 . | . . . . . . . . . . . . . . . . . . . . . . . . . . . High Security . | . . . . . . . . . . . . . . . . . . . . . . . . . . . Max Security . | . . . . . . . . . . . . . . . . . . . . . . . . . . . Squads Dispatched 30 | . 5 . 8 . . . 1 3 . . . . 3 2 . . . . 6 . . . . . . 2 Investigation 12 | . 3 . 4 . . . . 1 . . . . 2 . . . . . 2 . . . . . . . Extermination 4 | . . . . . . . . 1 . . . . . . . . . . 2 . . . . . . 1 Reinforcement 11 | . 2 . 3 . . . 1 1 . . . . 1 2 . . . . . . . . . . . 1 Assault 1 | . . . 1 . . . . . . . . . . . . . . . . . . . . . . . Garrison 2 | . . . . . . . . . . . . . . . . . . . 2 . . . . . . . Intercept . | . . . . . . . . . . . . . . . . . . . . . . . . . . . Construction Impeded 1 | . . . . . . . . . . . . . . 1 . . . . . . . . . . . . Haulers Reinforced . | . . . . . . . . . . . . . . . . . . . . . . . . . . . Stealth | -11 -10 -10 -9 -9 -9 -8 -8 -7 -7 -7 -6 -6 -6 -5 -5 -5 -5 -4 -4 -4 -4 -4 -3 -3 -2 -1 --------- Run | Scr Mat Min Mat Min Exi Min Mat Fac Low Zio Pro Fac Ext Fac Upp Upp War Pro Fac Upp Upp Zhi Pro Res Res Acc Distress Signals 24 | . 1 1 4 . . . 5 . . . . . . 1 . . . . 2 . . . . 1 9 . Communications Jammed . | . . . . . . . . . . . . . . . . . . . . . . . . . . . Distress Signals . | . . . . . . . . . . . . . . . . . . . . . . . . . . . Times Spotted 378 | . 35 2 54 6 . 28 33 19 . . 12 3 39 5 9 2 7 7 21 3 3 . 9 4 59 18 Peak Tracking Total 11 | . 6 2 6 3 . 7 8 5 . . 4 2 7 3 5 2 11 3 5 2 2 . 5 2 7 8 Tactical Retreats 29 | . 1 . 1 . . 3 3 1 . . 2 . 4 . 5 . . . 1 . . . . . 6 2 Traps | -11 -10 -10 -9 -9 -9 -8 -8 -7 -7 -7 -6 -6 -6 -5 -5 -5 -5 -4 -4 -4 -4 -4 -3 -3 -2 -1 ------- Run | Scr Mat Min Mat Min Exi Min Mat Fac Low Zio Pro Fac Ext Fac Upp Upp War Pro Fac Upp Upp Zhi Pro Res Res Acc Traps Triggered 14 | . 2 . 3 . . . . 2 . . . . 3 . . . . . 4 . . . . . . . Indirectly . | . . . . . . . . . . . . . . . . . . . . . . . . . . . Trap Hack Attempts . | . . . . . . . . . . . . . . . . . . . . . . . . . . . Triggered . | . . . . . . . . . . . . . . . . . . . . . . . . . . . Disarmed . | . . . . . . . . . . . . . . . . . . . . . . . . . . . Reprogrammed . | . . . . . . . . . . . . . . . . . . . . . . . . . . . Reused . | . . . . . . . . . . . . . . . . . . . . . . . . . . . Traps Extracted . | . . . . . . . . . . . . . . . . . . . . . . . . . . . Installed 16 | . . . . 5 . . . . . . . . . . 11 . . . . . . . . . . . Triggered 13 | . . . . . . . . . . . . . . . 4 2 4 . . 1 2 . . . . . Machines | -11 -10 -10 -9 -9 -9 -8 -8 -7 -7 -7 -6 -6 -6 -5 -5 -5 -5 -4 -4 -4 -4 -4 -3 -3 -2 -1 ---------- Run | Scr Mat Min Mat Min Exi Min Mat Fac Low Zio Pro Fac Ext Fac Upp Upp War Pro Fac Upp Upp Zhi Pro Res Res Acc Machines Disabled 14 | . 1 . 3 . . 5 . 1 . . . . 2 1 . . . . . . . . . . . 1 Max in Single Turn 2 | . 1 . 1 . . 2 . 1 . . . . 1 . . . . . . . . . . . . 1 Garrison Access 1 | . . . . . . . . . . . . . . . . . . . . . . . . . 1 . Machines Sabotaged . | . . . . . . . . . . . . . . . . . . . . . . . . . . . Garrisons Compromised . | . . . . . . . . . . . . . . . . . . . . . . . . . . . Overloaded Fab Kills . | . . . . . . . . . . . . . . . . . . . . . . . . . . . Fab Network Shutdowns . | . . . . . . . . . . . . . . . . . . . . . . . . . . . Hacking | -11 -10 -10 -9 -9 -9 -8 -8 -7 -7 -7 -6 -6 -6 -5 -5 -5 -5 -4 -4 -4 -4 -4 -3 -3 -2 -1 --------- Run | Scr Mat Min Mat Min Exi Min Mat Fac Low Zio Pro Fac Ext Fac Upp Upp War Pro Fac Upp Upp Zhi Pro Res Res Acc Machines Accessed 67 | . 9 . 10 . 1 . 5 5 . 1 . 3 13 1 1 . 7 . 2 . . 5 . 2 1 1 Terminals 36 | . 6 . 7 . . . 3 3 . . . 2 13 1 . . . . 1 . . . . . . . Fabricators 4 | . . . . . . . . 1 . . . 1 . . . . . . 1 . . . . . . 1 Repair Stations 5 | . 1 . 1 . . . 1 . . . . . . . . . . . . . . . . 1 1 . Recycling Units 3 | . 2 . 1 . . . . . . . . . . . . . . . . . . . . . . . Scanalyzers 3 | . . . 1 . . . 1 1 . . . . . . . . . . . . . . . . . . Garrison Access 1 | . . . . . . . . . . . . . . . . . . . . . . . . 1 . . Total Hacks 158 | . 22 . 30 . 1 . 13 17 . 3 . 7 25 2 1 . 7 . 5 . . 18 . 3 2 2 Successful 91 | . 12 . 14 . 1 . 7 9 . 3 . 2 8 1 1 . 7 . 4 . . 18 . 1 2 1 Failed 67 | . 10 . 16 . . . 6 8 . . . 5 17 1 . . . . 1 . . . . 2 . 1 Catastrophic 17 | . 2 . 3 . . . 1 2 . . . 1 6 1 . . . . . . . . . 1 . . Database Lockouts . | . . . . . . . . . . . . . . . . . . . . . . . . . . . Manual 37 | . 9 . 15 . . . 1 2 . 1 . 4 4 1 . . . . . . . . . . . . Terminals 88 | . 17 . 22 . . . 8 5 . . . 6 25 2 . . . . 3 . . . . . . . Fabricators 8 | . . . . . . . . 3 . . . 1 . . . . . . 2 . . . . . . 2 Repair Stations 13 | . 3 . 4 . . . 2 . . . . . . . . . . . . . . . . 2 2 . Recycling Units 3 | . 2 . 1 . . . . . . . . . . . . . . . . . . . . . . . Scanalyzers 15 | . . . 3 . . . 3 9 . . . . . . . . . . . . . . . . . . Garrison Access 1 | . . . . . . . . . . . . . . . . . . . . . . . . 1 . . Terminal Hacks 53 | . 4 . 3 . 1 . 3 . . 3 . 2 8 1 1 . 7 . 2 . . 18 . . . . Record 12 | . . . . . 1 . . . . . . . . . . . 5 . . . . 6 . . . . Part Schematic 8 | . . . . . . . . . . 3 . 1 . . . . . . . . . 4 . . . . Robot Analysis 5 | . . . . . . . 1 . . . . . . . . . . . . . . 4 . . . . Prototype ID Bank 6 | . 2 . . . . . . . . . . . . . . . . . . . . 4 . . . . Open Door 9 | . . . . . . . . . . . . . 6 . 1 . 2 . . . . . . . . . Branch Access Points 2 | . . . 1 . . . . . . . . . . 1 . . . . . . . . . . . . Alert Level 1 | . . . . . . . . . . . . . 1 . . . . . . . . . . . . . Unreport Threat 6 | . 1 . . . . . 2 . . . . 1 1 . . . . . 1 . . . . . . . Recall Investigation 1 | . . . 1 . . . . . . . . . . . . . . . . . . . . . . . Hauler Manifests 3 | . 1 . 1 . . . . . . . . . . . . . . . 1 . . . . . . . Fabricator Hacks 4 | . . . . . . . . 1 . . . . . . . . . . 2 . . . . . . 1 Load Schematic 3 | . . . . . . . . 1 . . . . . . . . . . 1 . . . . . . 1 Build 1 | . . . . . . . . . . . . . . . . . . . 1 . . . . . . . Repair Station Hacks 11 | . 2 . 4 . . . 2 . . . . . . . . . . . . . . . . 1 2 . Scan Component 6 | . 1 . 2 . . . 1 . . . . . . . . . . . . . . . . 1 1 . Repair 5 | . 1 . 2 . . . 1 . . . . . . . . . . . . . . . . . 1 . Recycling Unit Hacks . | . . . . . . . . . . . . . . . . . . . . . . . . . . . Scanalyzer 13 | . . . 3 . . . 2 8 . . . . . . . . . . . . . . . . . . Insert Component 7 | . . . 2 . . . 1 4 . . . . . . . . . . . . . . . . . . Analyze 6 | . . . 1 . . . 1 4 . . . . . . . . . . . . . . . . . . Garrison Access Hacks . | . . . . . . . . . . . . . . . . . . . . . . . . . . . Unauthorized Hacks 10 | . 6 . 4 . . . . . . . . . . . . . . . . . . . . . . . Terminals 7 | . 4 . 3 . . . . . . . . . . . . . . . . . . . . . . . Track 2 | . 1 . 1 . . . . . . . . . . . . . . . . . . . . . . . Botnet 4 | . 2 . 2 . . . . . . . . . . . . . . . . . . . . . . . Operators 1 | . 1 . . . . . . . . . . . . . . . . . . . . . . . . . Fabricators . | . . . . . . . . . . . . . . . . . . . . . . . . . . . Repair Stations . | . . . . . . . . . . . . . . . . . . . . . . . . . . . Recycling Units 3 | . 2 . 1 . . . . . . . . . . . . . . . . . . . . . . . Tunnel 3 | . 2 . 1 . . . . . . . . . . . . . . . . . . . . . . . Scanalyzers . | . . . . . . . . . . . . . . . . . . . . . . . . . . . Garrison Access . | . . . . . . . . . . . . . . . . . . . . . . . . . . . Data Cores Recovered . | . . . . . . . . . . . . . . . . . . . . . . . . . . . Used . | . . . . . . . . . . . . . . . . . . . . . . . . . . . Hacking Detections 44 | . 6 . 8 . . . 4 5 . . . 3 11 1 . . . . 2 . . . . 2 1 1 Full Trace Events 6 | . 1 . 1 . . . 1 1 . . . . 2 . . . . . . . . . . . . . Feedback Events . | . . . . . . . . . . . . . . . . . . . . . . . . . . . Feedback Blocked . | . . . . . . . . . . . . . . . . . . . . . . . . . . . Robot Schematics Acquired . | . . . . . . . . . . . . . . . . . . . . . . . . . . . Robots Built . | . . . . . . . . . . . . . . . . . . . . . . . . . . . Matter . | . . . . . . . . . . . . . . . . . . . . . . . . . . . Time . | . . . . . . . . . . . . . . . . . . . . . . . . . . . Total Robot Build Rating . | . . . . . . . . . . . . . . . . . . . . . . . . . . . Part Schematics Acquired 14 | . . . 1 . . . 1 4 . 3 . 1 . . . . . . . . . 4 . . . . Parts Built 2 | . . . . . . . . . . . . . . . . . . . 2 . . . . . . . Matter 124 | . . . . . . . . . . . . . . . . . . . 124 . . . . . . . Time 62 | . . . . . . . . . . . . . . . . . . . 62 . . . . . . . Total Part Build Rating 4 | . . . . . . . . . . . . . . . . . . . 4 . . . . . . . Parts Repaired 5 | . 1 . 2 . . . 1 . . . . . . . . . . . . . . . . . 1 . Time 184 | . 32 . 64 . . . 60 . . . . . . . . . . . . . . . . . 28 . Parts Recycled . | . . . . . . . . . . . . . . . . . . . . . . . . . . . Recycled Matter . | . . . . . . . . . . . . . . . . . . . . . . . . . . . Retrieved Matter . | . . . . . . . . . . . . . . . . . . . . . . . . . . . Retrieved Components . | . . . . . . . . . . . . . . . . . . . . . . . . . . . Parts Scanalyzed 6 | . . . 1 . . . 1 4 . . . . . . . . . . . . . . . . . . Part Schematics Acquired 6 | . . . 1 . . . 1 4 . . . . . . . . . . . . . . . . . . Parts Damaged 2 | . . . . . . . 1 1 . . . . . . . . . . . . . . . . . . Bothacking | -11 -10 -10 -9 -9 -9 -8 -8 -7 -7 -7 -6 -6 -6 -5 -5 -5 -5 -4 -4 -4 -4 -4 -3 -3 -2 -1 ------------ Run | Scr Mat Min Mat Min Exi Min Mat Fac Low Zio Pro Fac Ext Fac Upp Upp War Pro Fac Upp Upp Zhi Pro Res Res Acc Used RIF Installer . | . . . . . . . . . . . . . . . . . . . . . . . . . . . Robots Hacked 7 | . . . . . 6 . . . . . . . . . . . . . . . . . . . 1 . Non-combat 3 | . . . . . 3 . . . . . . . . . . . . . . . . . . . . . Combat 4 | . . . . . 3 . . . . . . . . . . . . . . . . . . . 1 . Robot Hacks Applied 12 | . . . . . 11 . . . . . . . . . . . . . . . . . . . 1 . parse_system 12 | . . . . . 11 . . . . . . . . . . . . . . . . . . . 1 . Relay Couplers Released 6 | . . . . . . . . . . . . . . . . . . . . . . . . . 6 . Machine Destruction 2 | . . . . . . . . . . . . . . . . . . . . . . . . . 2 . Programmers 4 | . . . . . . . . . . . . . . . . . . . . . . . . . 4 . Robots Rewired 18 | . . . . . . . . . . . . . 18 . . . . . . . . . . . . . Allies Hacked . | . . . . . . . . . . . . . . . . . . . . . . . . . . . Hacks Repelled . | . . . . . . . . . . . . . . . . . . . . . . . . . . . Allies | -11 -10 -10 -9 -9 -9 -8 -8 -7 -7 -7 -6 -6 -6 -5 -5 -5 -5 -4 -4 -4 -4 -4 -3 -3 -2 -1 -------- Run | Scr Mat Min Mat Min Exi Min Mat Fac Low Zio Pro Fac Ext Fac Upp Upp War Pro Fac Upp Upp Zhi Pro Res Res Acc Total Allies 35 | . . . . 3 . . . . . 5 . . 27 . . . . . . . . . . . . . Largest Group 10 | . . . . 3 3 3 . . . 5 5 . 10 7 . . . . . . . . . . . . Highest-Rated Group 288 | . . . . 40 40 40 . . . 118 118 . 288 203 . . . . . . . . . . . . Highest-Rated Ally 37 | . . . . 16 16 16 . . . 31 31 . 37 37 . . . . . . . . . . . . Total Orders 19 | . . . . . . . . . . . . . . . . . . . 1 . . . . 2 11 5 STAY 1 | . . . . . . . . . . . . . . . . . . . . . . . . . 1 . FOLLOW 2 | . . . . . . . . . . . . . . . . . . . . . . . . . 2 . EXPLORE 2 | . . . . . . . . . . . . . . . . . . . . . . . . . 2 . RETURN 14 | . . . . . . . . . . . . . . . . . . . 1 . . . . 2 6 5 Ally Attacks 302 | . . . . . . 25 . . . . 39 . 179 48 . . . . . . . . . . 11 . Total Damage 5783 | . . . . . . 250 . . . . 606 . 3245 816 . . . . . . . . . . 866 . Kills 55 | . . . . . . 5 . . . . 7 . 30 6 . . . . . . . . . . 7 . Allies Corrupted . | . . . . . . . . . . . . . . . . . . . . . . . . . . . Allies Melted . | . . . . . . . . . . . . . . . . . . . . . . . . . . . Intel | -11 -10 -10 -9 -9 -9 -8 -8 -7 -7 -7 -6 -6 -6 -5 -5 -5 -5 -4 -4 -4 -4 -4 -3 -3 -2 -1 ------- Run | Scr Mat Min Mat Min Exi Min Mat Fac Low Zio Pro Fac Ext Fac Upp Upp War Pro Fac Upp Upp Zhi Pro Res Res Acc Robot Analysis Total 5 | . . . . . . . 1 . . . . . . . . . . . . . . 4 . . . . Derelict Logs Recovered 7 | . . . . 2 . . . . 1 2 . . . . . 2 . . . . . . . . . . Drone Launches 17 | . . . . . . . . . . . . . . . . . 1 . 2 . . . . 2 6 6 Drone Recoveries 15 | . . . . . . . . . . . . . . . . . . . 2 . . . . 2 5 6 Exploration | -11 -10 -10 -9 -9 -9 -8 -8 -7 -7 -7 -6 -6 -6 -5 -5 -5 -5 -4 -4 -4 -4 -4 -3 -3 -2 -1 ------------- Run | Scr Mat Min Mat Min Exi Min Mat Fac Low Zio Pro Fac Ext Fac Upp Upp War Pro Fac Upp Upp Zhi Pro Res Res Acc Turns Passed 25740 | 112 1725 176 1980 1215 656 1138 954 1197 252 2002 667 530 2214 439 1389 1280 867 1263 779 568 605 330 486 448 1648 820 Spaces Moved 12692 | 47 862 34 829 598 348 529 418 651 168 1062 394 285 1072 232 766 761 502 370 328 324 333 175 263 219 686 436 Core 4 | 4 . . . . . . . . . . . . . . . . . . . . . . . . . . Treads 10492 | 43 862 34 829 598 348 529 418 228 . 616 4 15 573 232 766 761 502 370 328 324 333 175 263 219 686 436 Legs . | . . . . . . . . . . . . . . . . . . . . . . . . . . . Wheels 2196 | . . . . . . . . 423 168 446 390 270 499 . . . . . . . . . . . . . Hover . | . . . . . . . . . . . . . . . . . . . . . . . . . . . Flight . | . . . . . . . . . . . . . . . . . . . . . . . . . . . Fastest Speed 50 | 50 160 180 180 200 180 180 180 150 150 150 160 160 150 160 162 165 165 165 155 160 160 160 160 160 155 145 Average Speed 170 | 150 177 180 192 200 181 184 180 161 150 171 160 161 166 160 162 165 165 165 159 160 160 160 160 161 168 153 Slowest Speed 205 | 160 180 180 200 200 200 200 183 183 150 183 183 205 180 162 165 165 165 166 183 160 160 160 160 163 183 155 Overloaded Moves . | . . . . . . . . . . . . . . . . . . . . . . . . . . . Propulsion Burnouts . | . . . . . . . . . . . . . . . . . . . . . . . . . . . Robots Hopped . | . . . . . . . . . . . . . . . . . . . . . . . . . . . Cave-ins Triggered 1 | . . . . . . . . . . . . . . . . . . 1 . . . . . . . . Exploration Rate (%) 51 | 5 98 10 56 99 84 91 43 22 26 84 61 8 85 10 89 89 74 63 14 58 60 60 55 6 28 19 Regions Visited 26 Branch Regions 16 Pre-discovered Areas 10 | . 2 . 1 1 1 . . . . 2 . . . . . . . . . . . 3 . . . . Known Exits Taken 15 | . . . 1 . . . . . . . . 1 1 1 1 1 1 1 1 1 1 1 1 1 1 . Unknown Exits Taken 11 | 1 1 1 . 1 1 1 1 1 1 1 1 . . . . . . . . . . . . . . . Scrap Searched 17 | . . . . 2 . 1 . . . 4 2 . . . 1 3 . 1 . 2 1 . . . . . Spaces Dug 206 | . . . . 13 . 7 38 9 . . . . . 7 6 3 2 8 9 . 4 . . 4 86 10 Terrain Destroyed 501 | . . . 17 22 . 30 46 9 . . 1 2 6 7 9 4 2 8 22 3 7 . 39 6 171 90 Melee 68 | . . . . . . . . 9 . . . . . 7 6 3 2 8 9 . 4 . . 4 6 10 Projectile 90 | . . . . . . 3 . . . . 1 2 6 . 3 1 . . 13 3 3 . 15 2 37 1 AOE 343 | . . . 17 22 . 27 46 . . . . . . . . . . . . . . . 24 . 128 79 Terrain Rammed . | . . . . . . . . . . . . . . . . . . . . . . . . . . . Walls Destroyed . | . . . . . . . . . . . . . . . . . . . . . . . . . . . Machines Disabled . | . . . . . . . . . . . . . . . . . . . . . . . . . . . Actions | -11 -10 -10 -9 -9 -9 -8 -8 -7 -7 -7 -6 -6 -6 -5 -5 -5 -5 -4 -4 -4 -4 -4 -3 -3 -2 -1 --------- Run | Scr Mat Min Mat Min Exi Min Mat Fac Low Zio Pro Fac Ext Fac Upp Upp War Pro Fac Upp Upp Zhi Pro Res Res Acc Total 15612 | 69 980 133 1029 613 363 605 542 737 168 1239 420 324 1420 276 875 773 531 970 489 359 380 207 304 281 996 529 Wait 1287 | 2 22 89 33 2 . 15 8 8 1 157 13 12 44 . 55 . 1 563 50 23 28 . 15 14 110 22 Move 12664 | 46 861 33 828 597 347 528 417 650 167 1061 393 284 1071 231 765 760 501 368 327 323 332 174 262 218 685 435 Hop . | . . . . . . . . . . . . . . . . . . . . . . . . . . . Pick Up 129 | 5 17 . 13 1 . 4 8 11 . 4 3 2 15 4 3 . 1 . 8 . . 1 . 5 22 2 Fast Attach 99 | 7 1 . 3 . . 2 6 . . 4 . 1 8 3 1 . 2 1 11 1 . 8 3 8 21 8 Attach 48 | . . 1 4 . . 2 6 3 . . . 2 4 2 1 . . 2 3 . 1 1 1 1 6 8 Detach 27 | . . . . . . . 1 . . 1 . 1 1 . . . . . 3 . . 2 1 1 11 5 Swap 253 | . 8 . 19 4 3 6 25 13 . 4 2 6 18 14 19 5 6 12 30 6 8 2 10 4 17 12 Drop 197 | . 10 . 23 1 2 3 16 11 . 8 3 3 23 9 4 1 12 . 14 1 . 7 2 11 29 4 Fire 508 | 9 44 10 102 2 . 41 52 21 . . 6 12 41 6 10 4 . 15 30 5 7 . 10 11 50 20 Melee 153 | . . . . . 11 . . 18 . . . . . 7 6 3 8 8 10 . 4 12 . 8 45 13 Ram . | . . . . . . . . . . . . . . . . . . . . . . . . . . . Kick . | . . . . . . . . . . . . . . . . . . . . . . . . . . . Crush 39 | . 17 . 4 1 . 4 3 . . . . 1 6 . . . . . 3 . . . . . . . Escape Stasis 21 | . . . . . . . . 2 . . . . 18 . . . . 1 . . . . . . . . Rewire 171 | . . . . . . . . . . . . . 171 . . . . . . . . . . . . . Trap 16 | . . . . 5 . . . . . . . . . . 11 . . . . . . . . . . . Miscellaneous . | . . . . . . . . . . . . . . . . . . . . . . . . . . . Route ------- -11/Scrapyard -10/Materials (discovered 5 exits: *Mat x3 / [*Min x2]) -10/Mines -9/Materials (discovered 6 exits: *Mat x2 / *Min x2 / *Sto x2) -9/Mines (discovered 3 exits: *Mat x2 / *Exi) -9/Exiles -8/Mines -8/Materials -7/Factory -7/Lower Caves -7/Zion -6/Proximity Caves -6/Factory (discovered 2 exits: Low / *Ext) -6/Extension (discovered 2 exits: *Fac / *Cet) -5/Factory (discovered 2 exits: *Upp x2) -5/Upper Caves -5/Upper Caves (discovered 2 exits: *Fac / *War) -5/Warlord -4/Proximity Caves -4/Factory (discovered 4 exits: Res / *Upp x2 / Arm) -4/Upper Caves -4/Upper Caves -4/Zhirov -3/Proximity Caves -3/Research -2/Research -1/Access To Epsilon Eridani History --------- Turn | Location | Event 16 | -11/Scrapyard | Discovered new exit (range 15) 113 | -11/Scrapyard | Entered Materials 316 | -10/Materials | Build established: Mutant 327 | -10/Materials | Discovered new exit (range 16) 750 | -10/Materials | Discovered new exit (range 3) 798 | -10/Materials | Discovered new exit (range 10) 1042 | -10/Materials | Discovered new exit (range 15) 1303 | -10/Materials | Repaired Autogun? 1444 | -10/Materials | Discovered new exit (range 9) 1670 | -10/Materials | Build established: Hauler-Mutant 1838 | -10/Materials | Entered Mines 1839 | -10/Mines | Assembled infested the area 1850 | -10/Mines | Met a Derelict bent on vengeance 1989 | -10/Mines | Discovered new exit (range 3) 2014 | -10/Mines | Entered Materials 2014 | -9/Materials | Evolved 2 slots: Utility x1, Weapon x1 2311 | -9/Materials | Build established: Hauler-Tank 2452 | -9/Materials | Discovered new exit (range 16) 2460 | -9/Materials | Repaired Lgt. Treads? 2663 | -9/Materials | Repaired Katana 2763 | -9/Materials | Discovered new exit (range 3) 3246 | -9/Materials | Identified exit to Mines 3246 | -9/Materials | Identified exit to Storage 3614 | -9/Materials | First assault squad dispatched 3616 | -9/Materials | Discovered new exit (range 7) 3994 | -9/Materials | Entered Mines 4429 | -9/Mines | Discovered new exit (range 7) 4604 | -9/Mines | Assisted by bots powering up and referring to "LRC-V3" 4684 | -9/Mines | Found a hidden stash of uninstalled traps 4913 | -9/Mines | Learned Materials stockpile data 4923 | -9/Mines | Discovered new exit (range 6) 5060 | -9/Mines | Deemed a non-threat by the Exiles lab entrance 5060 | -9/Mines | Discovered new exit (range 5) 5209 | -9/Mines | Entered Exiles 5209 | -9/Exiles | Accompanied by 3 allies 5255 | -9/Exiles | Met 8R-AWN 5291 | -9/Exiles | Met EX-HEX 5347 | -9/Exiles | Met EX-BIN 5419 | -9/Exiles | Met EX-DEC 5426 | -9/Exiles | Learned location of Zion (-7) 5512 | -9/Exiles | Visited The Gauntlet 5561 | -9/Exiles | Build established: Hauler-Mutant 5845 | -9/Exiles | Discovered new exit (range 12) 5865 | -9/Exiles | Entered Mines 5865 | -8/Mines | Accompanied by 3 allies 5999 | -8/Mines | Discovered new exit (range 4) 6159 | -8/Mines | Build established: Hauler-Tank 6212 | -8/Mines | Core integrity fell below 50% 7003 | -8/Mines | Entered Materials 7003 | -8/Materials | Evolved 2 slots: Propulsion x1, Utility x1 7538 | -8/Materials | Build established: Hauler-Gunner 7719 | -8/Materials | Discovered new exit (range 12) 7849 | -8/Materials | Repaired Enh. Autogun? 7957 | -8/Materials | Entered Factory 7957 | -7/Factory | Evolved 2 slots: Propulsion x1, Weapon x1 8953 | -7/Factory | Discovered new exit (range 13) 9154 | -7/Factory | Entered Lower Caves 9173 | -7/Lower Caves | Encountered a Warlord checkpoint 9243 | -7/Lower Caves | Build established: Hauler-Mutant 9253 | -7/Lower Caves | Learned Factory trap positions 9396 | -7/Lower Caves | A Derelict revealed a hidden shortcut to a safe place 9406 | -7/Lower Caves | Entered Zion 9534 | -7/Zion | Discovered new exit (range 16) 9653 | -7/Zion | Learned location of Warlord (-5) 9859 | -7/Zion | Build established: Hauler-Gunner 9892 | -7/Zion | Gained Derelict followers 10194 | -7/Zion | Learned location of Extension (-6) 10467 | -7/Zion | Found Prototype Device 10467 | -7/Zion | Identified Mobile Refinery Mk. CCLXVII 10649 | -7/Zion | Learned 12 Factory zone layouts 10686 | -7/Zion | Given the Hacking Drone Bay 10686 | -7/Zion | Found Prototype Device 10686 | -7/Zion | Identified Hacking Drone Bay 10911 | -7/Zion | Visited the Megawrench Repair Shop 10914 | -7/Zion | Megawrench repaired 11 parts 10932 | -7/Zion | Given A8's code to call for help 11408 | -7/Zion | Entered Proximity Caves 11408 | -6/Proximity Caves | Accompanied by 5 allies 11749 | -6/Proximity Caves | Attracted the attention of an 0b10 checkpoint 11840 | -6/Proximity Caves | Discovered new exit (range 14) 12075 | -6/Proximity Caves | Entered Factory 12075 | -6/Factory | Evolved 2 slots: Propulsion x1, Utility x1 12076 | -6/Factory | Identified exit to Lower Caves 12076 | -6/Factory | Identified exit to Extension 12077 | -6/Factory | Loaded intel: 79 trap records 12386 | -6/Factory | Build established: Hauler-Skirmisher 12605 | -6/Factory | Entered Extension 12680 | -6/Extension | Rescued a captive Derelict 12680 | -6/Extension | Rescued a captive Derelict 13156 | -6/Extension | Build established: Commander-Skirmisher 13533 | -6/Extension | Spotted B-75 Beast 13553 | -6/Extension | Allies destroyed B-75 Beast 13555 | -6/Extension | Spotted B-75 Beast 13580 | -6/Extension | Disrupted transfer network 13580 | -6/Extension | Allies destroyed B-75 Beast 13671 | -6/Extension | Rescued a captive Derelict 13672 | -6/Extension | Rescued a captive Derelict 13680 | -6/Extension | Rescued a captive Derelict 13710 | -6/Extension | Rescued a captive Derelict 13711 | -6/Extension | Rescued a captive Derelict 14001 | -6/Extension | Rescued a captive Derelict 14019 | -6/Extension | Rescued a captive Derelict 14151 | -6/Extension | Build established: Scavenger-Gunner 14389 | -6/Extension | Discovered new exit (range 10) 14390 | -6/Extension | Discovered new exit (range 6) 14406 | -6/Extension | Identified exit to Factory 14805 | -6/Extension | Identified exit to Cetus 14819 | -6/Extension | Entered Factory 14819 | -5/Factory | Accompanied by 7 allies 14819 | -5/Factory | Evolved 2 slots: Utility x2 15057 | -5/Factory | Identified exit to Upper Caves 15258 | -5/Factory | Entered Upper Caves 15806 | -5/Upper Caves | Build established: Hauler-Skirmisher 15820 | -5/Upper Caves | Attracted the attention of an 0b10 checkpoint 16513 | -5/Upper Caves | Discovered new exit (range 13) 16646 | -5/Upper Caves | Identified exit to Upper Caves 16647 | -5/Upper Caves | Entered another Upper Caves area 16689 | -5/Upper Caves | Discovered new exit (range 13) 16762 | -5/Upper Caves | Build established: Hauler-Assassin 16943 | -5/Upper Caves | Learned Factory machine intel 17606 | -5/Upper Caves | Discovered new exit (range 11) 17624 | -5/Upper Caves | Identified exit to Warlord 17927 | -5/Upper Caves | Entered Warlord 18264 | -5/Warlord | Found Prototype Device 18458 | -5/Warlord | Found Prototype Device 18458 | -5/Warlord | Identified Minesniffer Drone Bay 18550 | -5/Warlord | Met Warlord 18575 | -5/Warlord | Warlord's base attacked by MAIN.C 18750 | -5/Warlord | Opened side exit 18783 | -5/Warlord | Discovered new exit (range 9) 18792 | -5/Warlord | Identified exit to Proximity Caves 18794 | -5/Warlord | Entered Proximity Caves 19604 | -4/Proximity Caves | Crushed by falling debris 19935 | -4/Proximity Caves | Build established: Derelict-Mutant 19958 | -4/Proximity Caves | Discovered new exit (range 13) 19976 | -4/Proximity Caves | Identified exit to Factory 20057 | -4/Proximity Caves | Entered Factory 20057 | -4/Factory | Evolved 2 slots: Utility x2 20058 | -4/Factory | Identified exit to Upper Caves 20059 | -4/Factory | Loaded intel: 247 machine locations 20346 | -4/Factory | Fabricated Imp. Terrain Scanner? 20404 | -4/Factory | Identified exit to Armory 20616 | -4/Factory | Discovered new exit (range 16) 20662 | -4/Factory | Garrison activated, responded to threat 20836 | -4/Factory | Entered Upper Caves 21117 | -4/Upper Caves | Build established: Hauler-Assassin 21357 | -4/Upper Caves | Discovered new exit (range 13) 21383 | -4/Upper Caves | Identified exit to Upper Caves 21404 | -4/Upper Caves | Entered another Upper Caves area 21988 | -4/Upper Caves | Discovered new exit (range 12) 22008 | -4/Upper Caves | Identified exit to Zhirov 22009 | -4/Upper Caves | Entered Zhirov 22011 | -4/Zhirov | Discovered new exit (range 3) 22040 | -4/Zhirov | Met Zhirov 22077 | -4/Zhirov | Learned location of Quarantine (-2) 22077 | -4/Zhirov | Learned location of Testing (-3) 22077 | -4/Zhirov | Learned location of Command (-1) 22086 | -4/Zhirov | Zhirov requested help retrieving the SGEMP Prototype 22125 | -4/Zhirov | Found Alien Artifact 22125 | -4/Zhirov | Identified Integrated Reactor 22125 | -4/Zhirov | Installed Integrated Reactor, increased core energy generation (+10) 22262 | -4/Zhirov | Found Alien Artifact 22338 | -4/Zhirov | Identified exit to Proximity Caves 22339 | -4/Zhirov | Entered Proximity Caves 22797 | -3/Proximity Caves | Discovered new exit (range 6) 22804 | -3/Proximity Caves | Identified exit to Research 22825 | -3/Proximity Caves | Entered Research 22825 | -3/Research | Evolved 2 slots: Utility x2 23006 | -3/Research | Discovered new exit (range 15) 23057 | -3/Research | Identified exit to Research 23203 | -3/Research | Spotted B-86 Titan 23225 | -3/Research | Found Prototype Launcher 23225 | -3/Research | Identified Hellfire Missile Launcher 23273 | -3/Research | Entered another Research area 23273 | -2/Research | Warlord forces began assault on 0b10 23273 | -2/Research | Evolved 2 slots: Utility x2 23328 | -2/Research | Met up with Warlord 23339 | -2/Research | Repaired Hvy. Treads 23367 | -2/Research | Identified Wardrone Bay 23383 | -2/Research | Research machine network offline 23402 | -2/Research | Borebot progress halted 23646 | -2/Research | Borebot progress halted 23662 | -2/Research | Build established: Hauler-Mutant 23807 | -2/Research | Borebot progress halted 23838 | -2/Research | Spotted Striker 23838 | -2/Research | Spotted Striker 23838 | -2/Research | Spotted Executioner 23858 | -2/Research | Destroyed Striker 23867 | -2/Research | Destroyed Executioner 23894 | -2/Research | Destroyed 8 combat bots 24128 | -2/Research | Build established: Hauler-Gunner 24364 | -2/Research | Spotted Executioner 24370 | -2/Research | Destroyed Executioner 24422 | -2/Research | Found Exp. Targeting Computer 24436 | -2/Research | Found Prototype Processor 24436 | -2/Research | Identified Exp. Core Analyzer 24455 | -2/Research | Found Enh. Force Lance 24558 | -2/Research | Spotted Striker 24578 | -2/Research | Spotted Striker 24591 | -2/Research | Destroyed Striker 24652 | -2/Research | Spotted Striker 24653 | -2/Research | Spotted Striker 24730 | -2/Research | Spotted Striker 24730 | -2/Research | Spotted Striker 24743 | -2/Research | Destroyed Striker 24781 | -2/Research | Discovered new exit (range 19) 24855 | -2/Research | Identified exit to Access 24885 | -2/Research | Spotted Striker 24887 | -2/Research | Spotted Striker 24900 | -2/Research | Destroyed Striker 24921 | -2/Research | Entered Access 24921 | -1/Access | Evolved 2 slots: Utility x2 25117 | -1/Access | Found Launcher Loader 25219 | -1/Access | Build established: Scavenger-Assassin 25571 | -1/Access | Destroyed 7 combat bots 25575 | -1/Access | Lost 5 parts (1n2u2w) 25730 | -1/Access | Discovered new exit (range 6) 25738 | -1/Access | Identified exit to Surface 25741 | *** | Escaped! Last Messages --------------- 25577_ Acquired 10 matter. 25579_ Hacking Drone released from Hacking Drone Bay. 25581_ U-05 Engineer builds a Wall. 25618_ Dropped Imp. Heavy Treads. 25618_ Acquired Biometal Heavy Treads. 25619_ Hacking Drone retrieved by Hacking Drone Bay. 25623_ R-10 Processor collects Imp. Heavy Treads. 25694_ Acquired Adv. Medium Treads. 25718_ Hacking Drone released from Hacking Drone Bay. 25718_ K-01 Serf cleans the Terminal. 25723_ Hacking Drone attempts to hack Terminal... >>Open Sealed Barrier opened. 25724_ Hacking Drone attempts to hack Terminal... 25724_ Hacking Drone reports that hacking Terminal no longer safe. 25730_ The Access Shell folds into the floor. 25730_ EXIT=FOUND 25738_ EXIT=IDENTIFIED: SURFACE 25740_ Hacking Drone retrieved by Hacking Drone Bay. [Achievement: Collector] Map ----- +----------------------------------------------------+ | ?????????????????????????????????????????????????? | | ?????????????????????????????????????????????????? | | ?????????????????????????????????????????????????? | | ?????????????????????????????????????????????????? | | ?????????????????????????????????????????????????? | | ?????????????????????????????????????????????????? | | ?????????????????????????????????????????????????? | | ?????????????????????????????????????????????????? | | ?????????????????????????????????????????????????? | | ??????????? ?????????????????????????????????????? | | ?????????? =?????????????????????????????????????? | | ??????????# ????????????????????????????????????? | | ??????????# ????????????????????????????????????? | | ??????????# ????????????????????????????????????? | | ??????????# ????????????????????????????????????? | | ??????????# ????????????????????????????????????? | | ??????????# ????????????????????????????????????? | | ??????????# ????????????????????????????????????? | | ??????????# #?????###???????????????????????????? | | ??????????# ####### ##########??????????????????? | | ??????????# """T""" "??????????????????? | | ??????????# """ """ "??????????????????? | | ??????????# "??????????????????? | | ??????????# "??????????????????? | | ??????????# "" "??????????????????? | | ??????????# @" "??????????????????? | | ??????????# u "??????????????????? | | ??????????# "??????????????????? | | ??????????# "??????????????????? | | ??????????# "??????????????????? | | ??????????# ####### ##########??????????????????? | | ??????????# ##????###???????????????????????????? | | ??????????# ##########??????????????????????????? | | ??????????# # #??????????????????????????? | | ??????????# # #??????????????????????????? | | ??????????# # #??????????????????????????? | | #######+### # " #??????????????????????????? | | # ! """ #??????????????????????????? | | + """#??????????????????????????? | | ???#+###### # " #??????????????????????????? | | ??????????# # #??????????????????????????? | | ??????????# # #??????????????????????????? | | ??????????# ##########??????????????????????????? | | ??????????# #???????????????????????????????????? | | ??????????# #???????????????????????????????????? | | ??????????# #???????????????????????????????????? | | ??????????# #???????????????????????????????????? | | ??????????# ######+#????????????????????????????? | | ??????????# +????????????????????????????? | | ????#+#???# #????????????????????????????? | +----------------------------------------------------+ Best States ------------- Heat Dissipation 64 Energy Generation 35 Energy Capacity 325 Matter Stores 433 Matter Capacity 500 Sight Range 20 Robot Scan Range 13 Terrain Scan Range 20 Terrain Scan Density 210 Base Temperature (-) 200 Armor Coverage 750 Resistance: TH 15 Resistance: EX 50 Resistance: EM 25 Power Shielding 90 Propulsion Shielding 66 Weapon Cycling 25 Evasion (%) 40 Targeting Accuracy 28 Target Analysis 8 Core Analysis 15 Armor Integrity Analysis 66 Recoil Reduction 5 Item Schematics ----------------- Imp. Terrain Scanner | -9/Materials | Scanalyzed Enh. Autogun | -8/Materials | Scanalyzed Adv. Signal Interpreter | -7/Factory | Scanalyzed Shield Generator | -7/Factory | Scanalyzed Adv. Targeting Computer | -7/Factory | Scanalyzed Transmission Jammer | -7/Factory | Scanalyzed Battle Rifle | -7/Zion | Free Slug Cannon | -7/Zion | Free Flamer | -7/Zion | Free Imp. Core Analyzer | -6/Factory | Hacked Assault Drone Bay | -4/Zhirov | Free Exp. Heat Sink | -4/Zhirov | Free Exp. Optical Array | -4/Zhirov | Free Imp. Arc Thrower | -4/Zhirov | Free Robot Schematics ------------------ None Fabricated ------------ Imp. Terrain Scanner | x2 | -4/Factory Alien Tech Used ----------------- Integrated Reactor Achievements -------------- Collector Challenges ------------ None Game ------ Seed GreatBottomlessWand Manual? 0 Play Time 04:46:44 Cumulative 119.9 hours Start 2021.10.21 @ 06:17:48 End 2021.10.25 @ 10:29:34 Sessions 31 Manual Loads 0 Difficulty Rogue Special Mode None Game No. 75 Rogue 75 Adventurer 0 Explorer 0 Win Type 0 Total 3 Types 2/0/0/1/0/0/0/0/0 Lore% 68 Gallery% 75 Achievement% 51 Wizard Run 0 Options --------- ASCII 0 Keyboard 1 Movement Vi Keybinds 0 Fullscreen 2 Font 18/Cog Map View 76x50 Tactical HUD 1 Map Filters NONE Filters NONE Steam 0 RUN: bd70704d-0f74-44f2-b3ad-8792cd32d313